bitfinex-derivatives/quotes_BTCF0:USTF0_20250905
["timestamp","ask_amount","ask_price","bid_price","bid_amount"]
[1757097900514,0.85805,111300.0,111290.0,0.99899218]
[1757097900716,0.85805,111300.0,111290.0,0.6326492]
[1757097901022,0.85805,111300.0,111290.0,0.99899218]
[1757097901518,0.03481,111300.0,111290.0,0.99899218]
[1757097903318,0.01369,111300.0,111290.0,1.24899218]
[1757097903519,0.03577,111310.0,111300.0,0.0898413]
[1757097903723,0.03577,111310.0,111300.0,1.00698428]
[1757097903724,0.03567,111310.0,111300.0,1.00698428]
[1757097905322,0.40201298,111310.0,111300.0,0.6406413]
[1757097905925,0.03567,111310.0,111300.0,0.6406413]
[1757097907339,0.03567,111310.0,111300.0,0.6416413]
[1757097907722,0.03567,111310.0,111300.0,0.6426413]
[1757097908331,0.85887,111310.0,111300.0,0.6426413]
[1757097909323,0.03567,111310.0,111300.0,0.6426413]
[1757097909527,0.85883,111310.0,111300.0,0.6426413]
[1757097909731,0.85883,111310.0,111300.0,0.4526413]
[1757097909928,1.22517298,111310.0,111300.0,0.3628]
[1757097910228,0.85883,111310.0,111300.0,0.4526413]
[1757097911932,0.03567,111310.0,111300.0,0.4526413]
[1757097912228,0.85883,111310.0,111300.0,0.4526413]
[1757097912530,0.03567,111310.0,111300.0,0.4526413]
[1757097912829,0.85883,111310.0,111300.0,0.4526413]
[1757097914532,0.85883,111310.0,111300.0,0.81898428]
[1757097915131,0.03567,111310.0,111300.0,0.81898428]
[1757097915333,0.85883,111310.0,111300.0,0.81898428]
[1757097915531,0.85883,111310.0,111300.0,0.4526413]
[1757097916432,0.03557,111310.0,111300.0,0.81898428]
[1757097916626,0.03557,111310.0,111300.0,0.4526413]
[1757097916826,0.03557,111310.0,111300.0,0.81898428]
[1757097917126,0.03557,111310.0,111300.0,0.4526413]
[1757097917327,0.03557,111310.0,111300.0,0.81898428]
[1757097917830,0.03557,111310.0,111300.0,0.4526413]
[1757097918034,0.03557,111310.0,111300.0,0.81898428]
[1757097919629,0.03557,111310.0,111300.0,0.4526413]
[1757097919937,0.03557,111310.0,111300.0,0.81898428]
[1757097922938,0.03557,111310.0,111300.0,0.4526413]
[1757097923127,0.03557,111310.0,111300.0,0.72914298]
[1757097925135,0.03557,111310.0,111300.0,0.81898388]
[1757097925928,0.0001,111320.0,111310.0,0.0898328]
[1757097926134,0.03567,111330.0,111320.0,0.0898248]
[1757097926438,0.05783868,111330.0,111320.0,0.81696778]
[1757097927138,0.05783868,111330.0,111320.0,0.4506248]
[1757097927435,0.05783868,111330.0,111320.0,0.82604617]
[1757097927635,0.05983868,111330.0,111320.0,0.82604617]
[1757097927936,0.05983868,111330.0,111320.0,0.83604617]
[1757097929835,0.06083868,111330.0,111320.0,0.83604617]
[1757097930429,0.06083868,111330.0,111320.0,0.90795417]
[1757097931243,0.06083868,111330.0,111320.0,0.54161119]
[1757097931444,0.06083868,111330.0,111320.0,1.27388661]
[1757097932136,0.06083868,111330.0,111320.0,0.54161119]
[1757097932336,0.06083868,111330.0,111320.0,1.27388661]
[1757097933632,0.03857,111330.0,111320.0,1.27388661]
[1757097935832,0.03857,111330.0,111320.0,2.3179241]
[1757097936331,0.40470771,111330.0,111320.0,2.77388661]
[1757097936536,0.03857,111330.0,111320.0,2.3179241]
[1757097936733,0.40470771,111330.0,111320.0,2.3179241]
[1757097937242,0.03857,111330.0,111320.0,2.3179241]
[1757097937434,0.40470771,111330.0,111320.0,2.3179241]
[1757097937634,0.65470771,111330.0,111320.0,1.942708]
[1757097938340,0.65470771,111330.0,111320.0,2.30884571]
[1757097938642,0.40470771,111330.0,111320.0,2.30884571]
[1757097938841,0.40470771,111330.0,111320.0,2.67498342]
[1757097939641,0.40470771,111330.0,111320.0,2.76480822]
[1757097940141,0.40470771,111330.0,111320.0,2.77377326]
[1757097940341,0.40470771,111330.0,111320.0,2.40763555]
[1757097940641,0.40470771,111330.0,111320.0,2.39867061]
[1757097941341,0.40470771,111330.0,111320.0,2.30884571]
[1757097942042,0.40470771,111330.0,111320.0,1.95163072]
[1757097942740,0.40470771,111330.0,111320.0,2.31776843]
[1757097942937,0.40470771,111330.0,111320.0,2.30884571]
[1757097943138,0.40470771,111330.0,111320.0,2.40770139]
[1757097943335,0.40470771,111330.0,111320.0,2.30884571]
[1757097943730,0.03857,111330.0,111320.0,2.30884571]
[1757097943936,0.40470771,111330.0,111320.0,2.30884571]
[1757097944437,0.40470771,111330.0,111320.0,1.942708]
[1757097945240,0.40470771,111330.0,111320.0,0.442708]
[1757097945439,1.02084542,111330.0,111320.0,0.3708]
[1757097946236,1.02084542,111330.0,111320.0,0.01]
[1757097946944,1.02084542,111330.0,111310.0,0.3609]
[1757097947243,1.59417542,111320.0,111310.0,0.3809]
[1757097947438,0.40159771,111320.0,111310.0,0.83677071]
[1757097947640,0.8619,111320.0,111310.0,0.83677071]
[1757097947840,0.03546,111320.0,111310.0,0.83677071]
[1757097948038,0.84319,111330.0,111310.0,2.00364371]
[1757097948345,0.03875,111330.0,111320.0,1.18290032]
[1757097948533,0.03765,111330.0,111320.0,1.18290032]
[1757097948742,0.03565,111330.0,111320.0,1.18290032]
[1757097949244,0.40178771,111330.0,111320.0,0.81676261]
[1757097949837,0.40378771,111330.0,111320.0,0.81676261]
[1757097950144,0.40378771,111330.0,111320.0,0.72693771]
[1757097950345,0.40378771,111330.0,111320.0,0.81676261]
[1757097951038,0.03765,111330.0,111320.0,0.81676261]
[1757097951244,0.40378771,111330.0,111320.0,0.81676261]
[1757097951445,0.40478771,111330.0,111320.0,0.81676261]
[1757097953842,0.40478771,111330.0,111320.0,0.72693771]
[1757097954546,0.40478771,111330.0,111320.0,0.3608]
[1757097954745,0.65478771,111330.0,111320.0,0.3608]
[1757097955246,1.02092542,111330.0,111320.0,0.3608]
[1757097955448,0.65478771,111330.0,111320.0,0.3608]
[1757097955842,1.02092542,111330.0,111320.0,0.3608]
[1757097959153,1.04306615,111330.0,111320.0,0.3608]
[1757097959948,0.31079073,111330.0,111320.0,0.3608]
[1757097960149,1.04306615,111330.0,111320.0,0.3608]
[1757097962157,0.31079073,111330.0,111320.0,0.3608]
[1757097962353,1.04306615,111330.0,111320.0,0.3608]
[1757097964259,0.03546,111320.0,111310.0,0.3609]
[1757097964455,1.59421542,111320.0,111300.0,1.8609]
[1757097964659,0.76773542,111310.0,111300.0,0.3609]
[1757097964953,1.22807771,111310.0,111300.0,0.3608]
[1757097965357,0.03546,111300.0,111290.0,0.3609]
[1757097965657,0.77687701,111300.0,111290.0,0.3608]
[1757097966458,1.60323701,111300.0,111290.0,0.3608]
[1757097966957,1.60319701,111300.0,111290.0,0.3608]
[1757097967359,0.76773542,111300.0,111290.0,0.3608]
[1757097967852,1.59397542,111300.0,111290.0,0.3608]
[1757097968353,0.76773542,111300.0,111290.0,0.3618]
[1757097968557,1.59393542,111300.0,111290.0,0.3618]
[1757097968759,0.76773542,111300.0,111290.0,0.3618]
[1757097969160,0.03546,111300.0,111290.0,0.81778681]
[1757097969360,0.03546,111300.0,111290.0,0.97693771]
[1757097969758,0.03546,111300.0,111290.0,1.06678681]
[1757097969958,0.40159771,111300.0,111290.0,0.81678681]
[1757097970155,0.40159771,111300.0,111290.0,0.72693771]
[1757097970359,0.40159771,111300.0,111290.0,0.4506492]
[1757097970559,0.40159771,111300.0,111290.0,0.81678691]
[1757097970963,0.03546,111300.0,111290.0,1.06678691]
[1757097971162,0.03546,111300.0,111290.0,1.06878691]
[1757097971357,0.0135,111300.0,111290.0,1.06878691]
[1757097971558,0.37973771,111310.0,111290.0,1.06878691]
[1757097971765,0.0001,111310.0,111300.0,1.43291642]
[1757097971965,0.0136,111320.0,111300.0,2.25891642]
[1757097972165,0.40169771,111320.0,111310.0,0.72693771]
[1757097972370,0.40159771,111320.0,111310.0,0.72693771]
[1757097972572,0.40159771,111320.0,111310.0,0.6108]
[1757097972762,0.40159771,111320.0,111310.0,0.98610917]
[1757097972963,0.40159771,111320.0,111310.0,1.07594217]
[1757097973461,0.40159771,111320.0,111310.0,1.06677071]
[1757097973661,0.03546,111320.0,111310.0,1.06677071]
[1757097973869,0.40159771,111320.0,111310.0,1.06677071]
[1757097974772,0.40159771,111320.0,111310.0,0.97693771]
[1757097975872,0.40159771,111320.0,111310.0,1.33773771]
[1757097977967,0.03546,111320.0,111310.0,1.42757071]
[1757097980065,0.40159771,111320.0,111310.0,1.42757071]
[1757097980270,0.03546,111320.0,111310.0,1.42757071]
[1757097980567,0.0135,111320.0,111310.0,1.17757071]
[1757097983168,0.37963771,111320.0,111310.0,1.08773771]
[1757097983574,0.76790542,111320.0,111310.0,1.08773771]
[1757097983874,0.40176771,111320.0,111310.0,1.08773771]
[1757097985675,0.40176771,111320.0,111310.0,0.7216]
[1757097985973,0.40176771,111320.0,111310.0,1.08773771]
[1757097986174,0.40176771,111320.0,111310.0,1.17757071]
[1757097986574,0.03563,111320.0,111310.0,1.17757071]
[1757097986873,0.40176771,111320.0,111310.0,1.17757071]
[1757097988168,0.40176771,111320.0,111310.0,0.7216]
[1757097988374,0.03563,111320.0,111310.0,1.17757071]
[1757097989275,0.40176771,111320.0,111310.0,1.17757071]
[1757097991273,0.40176771,111320.0,111310.0,1.08773771]
[1757097991973,0.40176771,111320.0,111310.0,1.17757071]
[1757097992273,0.76790542,111320.0,111310.0,0.7216]
[1757097992769,1.01790542,111320.0,111310.0,0.7216]
[1757097993578,0.65195711,111320.0,111310.0,0.7216]
[1757097996080,0.0131,111310.0,111300.0,0.3609]
[1757097996374,1.22523711,111310.0,111300.0,0.3608]
[1757097998579,1.22523711,111310.0,111300.0,0.3618]
[1757097999979,1.22523711,111310.0,111300.0,0.3628]
[1757098000881,1.22523711,111310.0,111300.0,0.3618]
[1757098001181,1.22523711,111310.0,111300.0,0.3628]
[1757098001478,1.22523711,111310.0,111300.0,0.3618]
[1757098001680,1.22523711,111310.0,111300.0,0.3628]
[1757098004184,0.85891,111310.0,111300.0,0.3628]
[1757098004482,1.22523711,111310.0,111300.0,0.3628]
[1757098004984,0.40155711,111310.0,111300.0,0.3628]
[1757098005185,1.22527711,111310.0,111300.0,0.3628]
[1757098006384,0.85895,111310.0,111300.0,0.3628]
[1757098008990,0.85895,111310.0,111300.0,0.7236]
[1757098009286,1.22527711,111310.0,111300.0,0.7236]
[1757098011187,1.22527711,111310.0,111300.0,0.7226]
[1757098012288,1.22527711,111310.0,111300.0,0.7216]
[1757098013082,1.22527711,111310.0,111300.0,0.7226]
[1757098013689,1.22527711,111310.0,111300.0,0.7236]
[1757098013885,1.22527711,111310.0,111300.0,0.7226]
[1757098014490,1.23419904,111310.0,111300.0,0.7226]
[1757098014689,1.23419904,111310.0,111300.0,0.7216]
[1757098018991,0.03566,111300.0,111290.0,0.3609]
[1757098019191,0.40198711,111300.0,111290.0,0.3608]
[1757098019489,0.40198711,111300.0,111290.0,1.06697621]
[1757098019490,0.03566,111300.0,111290.0,1.06697621]
[1757098019690,0.85938,111300.0,111290.0,1.06697621]
[1757098020488,0.03566,111300.0,111290.0,1.06697621]
[1757098020689,0.42402,111300.0,111290.0,1.06697621]
[1757098020891,0.42402,111300.0,111290.0,1.06797621]
[1757098021390,0.42402,111300.0,111290.0,1.06997621]
[1757098021896,0.03566,111300.0,111290.0,1.06997621]
[1757098022191,0.01283,111300.0,111290.0,1.06997621]
[1757098023185,0.83696,111310.0,111290.0,1.06797621]
[1757098023386,0.85979,111310.0,111300.0,0.72712711]
[1757098023594,0.85969,111310.0,111300.0,0.72712711]
[1757098025686,0.88184805,111310.0,111300.0,0.3608]
[1757098025989,0.88184805,111310.0,111300.0,0.3618]
[1757098027491,0.88184805,111310.0,111300.0,0.3628]
[1757098027998,1.49817516,111310.0,111300.0,0.3628]
[1757098028498,1.47601711,111310.0,111300.0,0.002]
[1757098029193,1.47601711,111310.0,111300.0,0.3618]
[1757098029392,1.11069,111310.0,111300.0,0.001]
[1757098029593,1.47701711,111310.0,111300.0,0.001]
[1757098030494,1.47701711,111310.0,111290.0,0.3609]
[1757098030701,0.40198711,111300.0,111290.0,0.3609]
[1757098030998,0.40198711,111300.0,111290.0,0.3608]
[1757098031187,0.03566,111300.0,111290.0,0.3608]
[1757098031392,0.40198711,111300.0,111290.0,0.3608]
[1757098033692,0.85942,111300.0,111290.0,0.81697661]
[1757098033893,0.85942,111300.0,111290.0,0.72712711]
[1757098035095,0.85942,111300.0,111290.0,0.72812711]
[1757098035498,0.85942,111300.0,111290.0,0.72912711]
[1757098037295,0.85942,111300.0,111290.0,0.3628]
[1757098038102,1.22574711,111300.0,111290.0,0.3628]
[1757098039602,1.22574711,111300.0,111290.0,0.3618]
[1757098039803,1.22574711,111300.0,111290.0,0.3608]
[1757098040905,0.40198711,111300.0,111290.0,0.3608]
[1757098041103,1.22574711,111300.0,111290.0,0.3608]
[1757098041902,0.40198711,111300.0,111290.0,0.3608]
[1757098042104,1.22574711,111300.0,111290.0,0.3608]
[1757098042803,0.40198711,111300.0,111290.0,0.3608]
[1757098043004,1.22574711,111300.0,111290.0,0.3608]
[1757098043706,0.40198711,111300.0,111290.0,0.3608]
[1757098044004,1.22574711,111300.0,111290.0,0.3608]
[1757098044196,0.40198711,111300.0,111290.0,0.3608]
[1757098044393,1.22570711,111300.0,111290.0,0.3608]
[1757098045807,1.22570711,111300.0,111290.0,0.3618]
[1757098046107,1.22570711,111300.0,111290.0,0.3628]
[1757098046504,1.22570711,111300.0,111290.0,0.3618]
[1757098047307,1.22570711,111300.0,111290.0,0.3608]
[1757098053298,1.59203422,111300.0,111290.0,0.3608]
[1757098053505,1.59238348,111300.0,111290.0,0.3608]
[1757098053909,1.60130256,111300.0,111290.0,0.3608]
[1757098054406,0.03566,111300.0,111290.0,0.72730174]
[1757098054610,0.85934,111300.0,111290.0,0.72730174]
[1757098054904,0.40216174,111300.0,111290.0,0.3608]
[1757098055109,0.85934,111300.0,111290.0,0.72730174]
[1757098055306,1.22584174,111300.0,111290.0,0.72730174]
[1757098056107,1.22584174,111300.0,111290.0,0.3608]
[1757098056314,1.22584174,111300.0,111290.0,0.72730174]
[1757098056709,1.22584174,111300.0,111290.0,0.72830174]
[1757098056912,0.85934,111300.0,111290.0,0.72930174]
[1757098057100,1.22584174,111300.0,111290.0,0.72930174]
[1757098057512,1.22584174,111300.0,111290.0,0.72830174]
[1757098057812,1.22584174,111300.0,111290.0,0.72930174]
[1757098058312,1.24800946,111300.0,111290.0,0.72930174]
[1757098060414,1.24800946,111300.0,111290.0,0.72830174]
[1757098060610,1.24800946,111300.0,111290.0,0.72730174]
[1757098061617,1.6145112,111300.0,111290.0,0.3608]
[1757098063306,1.6145112,111300.0,111290.0,0.3618]
[1757098064421,1.6145112,111300.0,111290.0,0.3608]
[1757098064719,1.6155112,111300.0,111290.0,0.3608]
[1757098065816,1.59334348,111300.0,111290.0,0.3608]
[1757098066920,1.59234348,111300.0,111290.0,0.3608]
[1757098067716,1.59434348,111300.0,111290.0,0.3608]
[1757098068818,1.59234348,111300.0,111290.0,0.3608]
[1757098074417,0.86034,111300.0,111290.0,0.3608]
[1757098074724,1.59334348,111300.0,111290.0,0.3608]
[1757098075222,1.59234348,111300.0,111290.0,0.3608]
[1757098076424,1.59434348,111300.0,111290.0,0.3608]
[1757098077415,1.59534348,111300.0,111290.0,0.3608]
[1757098078327,1.59434348,111300.0,111290.0,0.3608]
[1757098078628,0.76866348,111300.0,111290.0,0.3608]
[1757098078928,0.8591,111300.0,111290.0,0.3608]
[1757098079128,1.59210348,111300.0,111290.0,0.3608]
[1757098080126,0.8591,111300.0,111290.0,0.3608]
[1757098080328,1.59210348,111300.0,111290.0,0.3608]
[1757098080628,0.76866348,111300.0,111290.0,0.3608]
[1757098081029,1.59210348,111300.0,111290.0,0.3608]
[1757098087321,1.59206348,111300.0,111290.0,0.3608]
[1757098088625,0.76866348,111300.0,111290.0,0.3608]
[1757098088825,1.59202348,111300.0,111290.0,0.3608]
[1757098096940,1.6142091,111300.0,111290.0,0.3608]
[1757098097239,0.88120562,111300.0,111290.0,0.3608]
[1757098097436,1.6142091,111300.0,111290.0,0.3608]
[1757098097635,1.59202348,111300.0,111290.0,0.3608]
[1757098099934,1.59190348,111300.0,111290.0,0.3608]
[1757098102751,1.61408918,111300.0,111290.0,0.3608]
[1757098103746,0.0578457,111300.0,111290.0,0.4506494]
[1757098104049,1.22536174,111300.0,111290.0,0.72730174]
[1757098104251,0.40216174,111300.0,111290.0,0.81715114]
[1757098104453,1.22532174,111300.0,111290.0,0.81715114]
[1757098105449,0.85882,111300.0,111290.0,0.81815114]
[1757098105651,1.22532174,111300.0,111290.0,0.81815114]
[1757098105850,1.2475033,111300.0,111290.0,0.81815114]
[1757098106052,1.61400504,111300.0,111290.0,0.81815114]
[1757098106448,1.61400504,111300.0,111290.0,0.3618]
[1757098106654,1.61400504,111300.0,111290.0,0.72830174]
[1757098106848,1.61400504,111300.0,111290.0,0.72930174]
[1757098111452,1.59182348,111300.0,111290.0,0.72930174]
[1757098111850,1.59182348,111300.0,111290.0,0.81915114]
[1757098112049,0.03566,111300.0,111290.0,1.06915114]
[1757098112355,1.22520174,111300.0,111290.0,1.06915114]
[1757098113254,1.22520174,111300.0,111290.0,0.97930174]
[1757098113456,1.22509436,111300.0,111290.0,0.7026494]
[1757098113652,0.8587,111300.0,111290.0,0.7026494]
[1757098113850,1.22509436,111300.0,111290.0,0.7026494]
[1757098115051,1.22509436,111300.0,111290.0,0.6128]
[1757098115856,0.8587,111300.0,111290.0,0.6128]
[1757098116056,1.22509436,111300.0,111290.0,0.6128]
[1757098119262,1.22509436,111300.0,111290.0,0.3628]
[1757098120857,0.40205436,111300.0,111290.0,0.3628]
[1757098121061,0.72254,111300.0,111290.0,0.81904376]
[1757098122664,0.72254,111300.0,111290.0,0.3628]
[1757098127270,1.08893436,111300.0,111290.0,0.3628]
[1757098129069,1.08893436,111300.0,111290.0,0.3618]
[1757098130065,1.08893436,111300.0,111290.0,0.3608]
[1757098130265,1.08893436,111300.0,111290.0,0.3628]
[1757098132770,0.72254,111300.0,111290.0,0.3628]
[1757098132970,1.08893436,111300.0,111290.0,0.3628]
[1757098133271,1.08893436,111300.0,111290.0,0.3618]
[1757098135066,0.72254,111300.0,111290.0,0.3618]
[1757098135362,1.08893436,111300.0,111290.0,0.3618]
[1757098138171,0.72254,111300.0,111290.0,0.3618]
[1757098138372,1.08893436,111300.0,111290.0,0.3618]
[1757098141973,0.40205436,111300.0,111290.0,0.3618]
[1757098142172,1.22461436,111300.0,111290.0,0.3618]
[1757098144474,1.59100872,111300.0,111290.0,0.3618]
[1757098144676,1.22461436,111300.0,111290.0,0.3618]
[1757098145875,1.24671246,111300.0,111290.0,0.3618]
[1757098146175,1.61310682,111300.0,111290.0,0.3618]
[1757098148877,1.61310682,111300.0,111290.0,0.3608]
[1757098149078,1.61310682,111300.0,111290.0,0.3618]
[1757098149974,1.86310682,111300.0,111290.0,0.3618]
[1757098150173,0.01285,111290.0,111280.0,0.3609]
[1757098150379,1.22366436,111290.0,111280.0,0.3624]
[1757098150678,1.22366436,111290.0,111280.0,0.3608]
[1757098151480,0.01285,111280.0,111270.0,1.8609]
[1757098151672,0.37924436,111280.0,111270.0,1.93302783]
[1757098152975,0.37924436,111280.0,111270.0,1.93502783]
[1757098153677,0.01285,111280.0,111270.0,2.64128769]
[1757098154374,0.01295,111290.0,111280.0,0.0016]
[1757098154574,0.01293,111300.0,111280.0,1.43865136]
[1757098154879,0.41889,111300.0,111290.0,1.17944366]
[1757098155066,0.41879,111300.0,111290.0,1.17944366]
[1757098155270,0.85783,111310.0,111300.0,0.0914414]
[1757098155477,0.87981157,111310.0,111300.0,0.82781376]
[1757098155971,0.85773,111310.0,111300.0,0.82781376]
[1757098157173,0.85773,111310.0,111300.0,0.81863576]
[1757098157373,0.85973,111310.0,111300.0,0.81863576]
[1757098157673,0.85973,111310.0,111300.0,0.82753913]
[1757098157977,0.85973,111310.0,111300.0,0.81863576]
[1757098158378,0.86173,111310.0,111300.0,0.81863576]
[1757098158973,0.86173,111310.0,111300.0,0.3624]
[1757098159176,0.86173,111310.0,111300.0,0.72879436]
[1757098159683,0.86173,111310.0,111300.0,0.3624]
[1757098159978,0.85973,111310.0,111300.0,0.4522414]
[1757098160179,0.85773,111310.0,111300.0,0.4542414]
[1757098160380,0.85773,111310.0,111300.0,0.3654]
[1757098161174,1.22412436,111310.0,111300.0,0.3654]
[1757098161375,1.22412436,111310.0,111300.0,0.4552414]
[1757098161576,0.85773,111310.0,111300.0,0.4552414]
[1757098161778,1.22412436,111310.0,111300.0,0.4552414]
[1757098162785,1.22412436,111310.0,111300.0,0.3654]
[1757098162978,1.22412436,111310.0,111300.0,0.4552415]
[1757098169388,0.85773,111310.0,111300.0,0.4552415]
[1757098175501,1.22405117,111310.0,111300.0,0.82156267]
[1757098176201,0.85773,111310.0,111300.0,0.82156267]
[1757098176403,1.22405117,111310.0,111300.0,0.82156267]
[1757098178303,1.22373117,111310.0,111300.0,0.82156267]
[1757098180201,1.22373117,111310.0,111300.0,0.3654]
[1757098180402,1.22373117,111310.0,111300.0,0.73012117]
[1757098180799,1.22373117,111310.0,111300.0,0.73172117]
[1757098181006,1.22367663,111310.0,111300.0,0.73172117]
[1757098182305,1.22367663,111310.0,111300.0,0.3638]
[1757098182306,1.47367663,111310.0,111300.0,0.3638]
[1757098183107,1.47367663,111310.0,111300.0,0.36549]
[1757098187405,1.47367663,111310.0,111300.0,0.36349]
[1757098187708,1.47367663,111310.0,111300.0,0.36449]
[1757098188411,1.47367663,111310.0,111300.0,0.36349]
[1757098191212,1.47367663,111310.0,111300.0,0.36449]
[1757098191911,1.47367663,111310.0,111300.0,0.36549]
[1757098193011,1.10735546,111310.0,111300.0,0.36549]
[1757098193208,1.47367663,111310.0,111300.0,0.36549]
[1757098194514,1.47367663,111310.0,111300.0,0.3638]
[1757098194706,1.47367663,111310.0,111300.0,0.36549]
[1757098195515,1.47367663,111310.0,111300.0,0.36449]
[1757098195814,1.47367663,111310.0,111300.0,0.36349]
[1757098196005,1.47367663,111310.0,111300.0,0.3618]
[1757098196207,1.47367663,111310.0,111300.0,0.36449]
[1757098197513,1.47367663,111310.0,111300.0,0.3628]
[1757098197816,1.10735546,111310.0,111300.0,0.36449]
[1757098198012,1.47367663,111310.0,111300.0,0.36449]
[1757098198818,1.47367663,111310.0,111300.0,0.3608]
[1757098199113,1.47367663,111310.0,111300.0,0.3618]
[1757098200010,1.48253354,111310.0,111300.0,0.3618]
[1757098200210,0.28527546,111310.0,111300.0,0.3618]
[1757098200410,1.47339663,111310.0,111300.0,0.36349]
[1757098201718,1.22339663,111310.0,111300.0,0.72981117]
[1757098202415,1.22339663,111310.0,111300.0,0.81965257]
[1757098203112,0.85707546,111310.0,111300.0,0.81965257]
[1757098203311,0.85703546,111310.0,111300.0,0.4533314]
[1757098203814,0.85959546,111310.0,111300.0,1.18597374]
[1757098204020,1.22591663,111310.0,111300.0,0.81965257]
[1757098204218,0.85959546,111310.0,111300.0,0.4533314]
[1757098204520,1.22591663,111310.0,111300.0,0.81965257]
[1757098205622,0.85959546,111310.0,111300.0,0.81965257]
[1757098206121,1.22591663,111310.0,111300.0,0.81965257]
[1757098206423,0.86151546,111310.0,111300.0,1.43597374]
[1757098207122,0.86151546,111310.0,111300.0,0.7033314]
[1757098207322,0.86151546,111310.0,111300.0,1.43597374]
[1757098208123,0.86151546,111310.0,111300.0,0.7033314]
[1757098208323,0.86151546,111310.0,111300.0,1.43597374]
[1757098209224,0.83924546,111310.0,111300.0,1.18597374]
[1757098212821,0.86172546,111310.0,111300.0,0.4533314]
[1757098213022,0.86172546,111310.0,111300.0,1.18597374]
[1757098215326,1.22804663,111310.0,111300.0,1.18597374]
[1757098216025,1.22804663,111310.0,111300.0,0.4533314]
[1757098216229,0.86172546,111310.0,111300.0,1.18597374]
[1757098216424,1.22804663,111310.0,111300.0,1.18597374]
[1757098217826,1.22804663,111310.0,111300.0,0.81965257]
[1757098218028,0.86172546,111310.0,111300.0,0.81965257]
[1757098218331,1.22804663,111310.0,111300.0,1.18597374]
[1757098219428,0.86172546,111310.0,111300.0,1.18597374]
[1757098219731,1.22804663,111310.0,111300.0,1.18597374]
[1757098220034,0.86172546,111310.0,111300.0,1.18597374]
[1757098220227,1.22804663,111310.0,111300.0,1.18597374]
[1757098220625,0.01304546,111310.0,111300.0,1.18597374]
[1757098220927,0.01295,111320.0,111310.0,0.0915233]
[1757098221128,0.01285,111320.0,111310.0,1.18496564]
[1757098221332,0.01285,111320.0,111310.0,2.00984564]
[1757098221628,0.22147,111330.0,111310.0,2.09967894]
[1757098221833,0.22147,111330.0,111320.0,1.18326754]
[1757098221834,0.24443,111330.0,111320.0,1.18326754]
[1757098222126,0.24433,111330.0,111320.0,1.18326754]
[1757098224231,0.24533,111330.0,111320.0,1.18326754]
[1757098229735,0.24533,111330.0,111320.0,0.4523152]
[1757098229936,0.24533,111330.0,111320.0,1.18495754]
[1757098230836,0.001,111330.0,111320.0,1.80127871]
[1757098231133,0.001,111330.0,111320.0,2.57067754]
[1757098231338,0.001,111330.0,111320.0,2.26067754]
[1757098231533,0.001,111330.0,111320.0,2.63067754]
[1757098231734,0.001,111330.0,111320.0,1.5480352]
[1757098231941,0.001,111330.0,111320.0,2.26063754]
[1757098232135,0.001,111330.0,111320.0,2.60063754]
[1757098232439,0.001,111330.0,111320.0,2.26063754]
[1757098232838,0.001,111330.0,111320.0,2.61063754]
[1757098233041,0.01497,111330.0,111320.0,1.78495754]
[1757098233338,0.01497,111330.0,111320.0,2.61051754]
[1757098235048,0.001,111330.0,111320.0,2.61051754]
[1757098235441,0.01497,111330.0,111320.0,1.41838178]
[1757098235643,0.01497,111330.0,111320.0,2.24378178]
[1757098236240,0.01497,111330.0,111320.0,1.41838178]
[1757098236435,0.01497,111330.0,111320.0,2.24374178]
[1757098238542,0.001,111330.0,111320.0,2.24374178]
[1757098239430,0.001,111330.0,111320.0,1.99374178]
[1757098240235,0.001,111330.0,111320.0,2.01374178]
[1757098241044,0.001,111330.0,111320.0,2.62980836]
[1757098241342,0.0001,111340.0,111330.0,0.82204036]
[1757098241536,0.01407,111350.0,111340.0,0.0898992]
[1757098241736,0.01407,111350.0,111340.0,2.00180578]
[1757098241737,0.03693,111350.0,111340.0,2.00180578]
[1757098242431,0.01397,111350.0,111340.0,2.00180578]
[1757098242635,0.01397,111350.0,111340.0,1.65180578]
[1757098243136,0.03693,111350.0,111340.0,1.65168578]
[1757098243738,0.03693,111350.0,111340.0,1.29460558]
[1757098244040,0.03693,111350.0,111340.0,1.66067216]
[1757098244433,0.03993,111350.0,111340.0,1.66067216]
[1757098244837,0.04193,111350.0,111340.0,0.83579216]
[1757098245141,0.04193,111350.0,111340.0,1.66039216]
[1757098245335,0.04193,111350.0,111340.0,1.73051267]
[1757098245537,0.01897,111350.0,111340.0,1.73051267]
[1757098245742,0.04102,111350.0,111340.0,0.90591267]
[1757098245934,0.04102,111350.0,111340.0,0.81610347]
[1757098246138,0.04102,111350.0,111340.0,1.64154347]
[1757098246840,0.04102,111350.0,111340.0,1.27547689]
[1757098247042,0.04102,111350.0,111340.0,1.64154347]
[1757098247444,0.04102,111350.0,111340.0,1.73135267]
[1757098250243,0.04102,111350.0,111340.0,1.73119267]
[1757098250442,0.04102,111350.0,111340.0,1.73111267]
[1757098251849,0.01897,111350.0,111340.0,1.73111267]
[1757098252040,0.005,111350.0,111340.0,2.06111267]
[1757098252846,0.005,111350.0,111340.0,2.09111267]
[1757098254047,0.005,111350.0,111340.0,0.89591267]
[1757098254249,0.005,111350.0,111340.0,1.73219267]
[1757098254747,0.005,111350.0,111340.0,1.36612609]
[1757098254947,0.005,111350.0,111340.0,1.73219267]
[1757098255746,0.01886,111350.0,111340.0,1.73219267]
[1757098256049,0.01886,111350.0,111340.0,1.73207267]
[1757098257138,0.04091,111350.0,111340.0,1.73207267]
[1757098257744,0.01886,111350.0,111340.0,1.73207267]
[1757098258146,0.01686,111350.0,111340.0,3.23211267]
[1757098258348,0.01886,111350.0,111340.0,3.23211267]
[1757098259152,0.01786,111350.0,111340.0,3.23211267]
[1757098260352,0.01786,111350.0,111340.0,2.31614347]
[1757098260550,0.26786,111350.0,111340.0,2.31614347]
[1757098260949,0.26786,111350.0,111340.0,1.94105051]
[1757098261850,0.26786,111350.0,111340.0,2.30711709]
[1757098262748,0.26786,111350.0,111340.0,1.94105051]
[1757098262953,0.26786,111350.0,111340.0,2.67711709]
[1757098263156,0.26786,111350.0,111340.0,1.93105051]
[1757098263347,0.26786,111350.0,111340.0,2.30711709]
[1757098263654,0.26786,111350.0,111340.0,1.94105051]
[1757098263956,0.28991,111350.0,111340.0,0.44105051]
[1757098264158,0.28991,111350.0,111340.0,0.80711709]
[1757098264349,0.28991,111350.0,111340.0,0.44105051]
[1757098265852,0.28991,111350.0,111340.0,0.79105051]
[1757098267757,0.28991,111350.0,111340.0,1.15711709]